fUST/lending_fUST_20240212
["ID","MTS","AMOUNT","RATE_DAILY","PERIOD"]
[313770022,1707711032546,-258.05587891,0.00017955,2]
[313770023,1707711032556,-85.1372911,0.00017956,2]
[313770024,1707711032568,-356.3387052,0.00017956,2]
[313770074,1707711039781,-599.60485454,0.00017956,2]
[313770076,1707711039791,-154.87609912,0.00017998,3]
[313770078,1707711039800,-168.313164,0.00019178,2]
[313770080,1707711039810,-285.58,0.000195,2]
[313770082,1707711039819,-176.13516098,0.00019895,2]
[313770084,1707711039829,-176.13516097,0.00019898,2]
[313770086,1707711039839,-22.84747025,0.000199,2]
[313770089,1707711039855,-153.28769072,0.000199,2]
[313770091,1707711039864,-8076.93,0.00019985,3]
[313770093,1707711039873,-500.0,0.00019986,2]
[313770095,1707711039882,-389.34103931,0.00019987,2]
[313770097,1707711039892,-502.13133852,0.00019988,2]
[313770099,1707711039901,-501.95410542,0.00019988,2]
[313770101,1707711039910,-395.84007928,0.00019988,2]
[313770104,1707711039920,-574.94797425,0.00019988,2]
[313770106,1707711039929,-369.48250787,0.00019988,2]
[313770108,1707711039939,-334.74291863,0.00019988,2]
[313770110,1707711039948,-500.0,0.00019988,2]
[313770112,1707711039957,-545.27303219,0.00019988,2]
[313770114,1707711039966,-500.0,0.00019988,2]
[313770116,1707711039975,-1829.52,0.00019994,2]
[313770118,1707711039984,-500.0,0.00019994,2]
[313770120,1707711039993,-501.52002189,0.00019995,2]
[313770122,1707711040002,-501.49239533,0.00019995,2]
[313770124,1707711040011,-501.19500842,0.00019995,2]
[313770126,1707711040020,-504.70323057,0.00019995,2]
[313770128,1707711040029,-500.0,0.00019995,2]
[313770130,1707711040039,-503.21581042,0.00019995,2]
[313770132,1707711040048,-504.67387278,0.00019995,2]
[313770133,1707711040057,-506.71129928,0.00019995,2]
[313770135,1707711040065,-426.83290258,0.00019995,2]
[313770137,1707711040074,-469.60459913,0.00019995,2]
[313770139,1707711040084,-500.0,0.00019995,2]
[313770141,1707711040093,-580.64019019,0.00019995,2]
[313770143,1707711040102,-197.19171224,0.00019995,2]
[313770145,1707711040111,-503.48889772,0.00019995,2]
[313770147,1707711040120,-503.07677899,0.00019995,2]
[313770150,1707711040130,-502.45704544,0.00019995,2]
[313770152,1707711040139,-504.64346075,0.00019995,2]
[313770154,1707711040148,-500.0,0.00019995,2]
[313770156,1707711040158,-500.0,0.00019995,2]
[313770158,1707711040168,-522.4500588,0.00019995,2]
[313770160,1707711040177,-514.84541444,0.00019995,2]
[313770162,1707711040186,-503.01759719,0.00019995,2]
[313770164,1707711040195,-500.0,0.00019995,2]
[313770166,1707711040204,-500.0,0.00019995,2]
[313770168,1707711040213,-505.95512343,0.00019995,2]
[313770170,1707711040222,-500.0,0.00019995,2]
[313770172,1707711040230,-367.4716582,0.00019995,2]
[313770174,1707711040240,-500.0,0.00019995,2]
[313770176,1707711040250,-501.37751407,0.00019995,2]
[313770178,1707711040259,-579.99020633,0.00019995,2]
[313770180,1707711040269,-575.1675399,0.00019995,2]
[313770182,1707711040278,-500.0,0.00019995,2]
[313770184,1707711040287,-500.0,0.00019995,2]
[313770186,1707711040296,-500.0,0.00019995,2]
[313770188,1707711040305,-503.59068147,0.00019995,2]
[313770190,1707711040313,-500.0,0.00019995,2]
[313770192,1707711040322,-500.0,0.00019995,2]
[313770194,1707711040331,-500.0,0.00019995,2]
[313770196,1707711040340,-500.0,0.00019995,2]
[313770198,1707711040349,-500.0,0.00019995,2]
[313770200,1707711040358,-500.0,0.00019995,2]
[313770202,1707711040367,-500.0,0.00019995,2]
[313770204,1707711040376,-500.0,0.00019995,2]
[313770206,1707711040385,-500.0,0.00019995,2]
[313770208,1707711040394,-151.0,0.00019995,2]
[313770210,1707711040403,-151.0,0.00019995,2]
[313770212,1707711040412,-151.0,0.00019995,2]
[313770214,1707711040422,-151.0,0.00019995,2]
[313770216,1707711040431,-268.52564,0.00019995,2]
[313770218,1707711040440,-501.48993434,0.00019995,2]
[313770220,1707711040449,-500.0,0.00019995,2]
[313770222,1707711040458,-500.0,0.00019995,2]
[313770224,1707711040467,-500.0,0.00019995,2]
[313770226,1707711040476,-452.24995205,0.00019995,2]
[313770228,1707711040485,-502.86325708,0.00019995,2]
[313770230,1707711040494,-537.95,0.00019995,2]
[313770232,1707711040503,-500.0,0.00019995,2]
[313770234,1707711040512,-500.0,0.00019995,2]
[313770236,1707711040522,-500.0,0.00019995,2]
[313770237,1707711040531,-500.0,0.00019995,2]
[313770238,1707711040540,-402.95556027,0.00019995,2]
[313770239,1707711040549,-500.0,0.00019995,2]
[313770241,1707711040558,-515.25408395,0.00019995,2]
[313770243,1707711040566,-500.0,0.00019995,2]
[313770245,1707711040575,-500.0,0.00019995,2]
[313770247,1707711040584,-4403.81,0.00019995,2]
[313770249,1707711040593,-500.0,0.00019995,2]
[313770251,1707711040602,-500.0,0.00019995,2]
[313770253,1707711040614,-7458.97,0.00019995,2]
[313770255,1707711040623,-500.0,0.00019995,2]
[313770257,1707711040632,-500.0,0.00019995,2]
[313770259,1707711040641,-500.0,0.00019995,2]
[313770261,1707711040651,-500.0,0.00019995,2]
[313770263,1707711040660,-500.0,0.00019995,2]
[313770265,1707711040669,-500.0,0.00019995,2]
[313770267,1707711040678,-500.0,0.00019995,2]
[313770269,1707711040687,-500.0,0.00019995,2]
[313770271,1707711040696,-500.0,0.00019995,2]
[313770273,1707711040706,-500.0,0.00019995,2]
[313770275,1707711040715,-500.0,0.00019995,2]
[313770276,1707711040724,-500.0,0.00019995,2]
[313770279,1707711040733,-150.0,0.00019995,2]
[313770281,1707711040742,-500.0,0.00019995,2]
[313770283,1707711040752,-500.0,0.00019995,2]
[313770285,1707711040761,-500.0,0.00019995,2]
[313770286,1707711040770,-151.0,0.00019995,2]
[313770288,1707711040779,-151.0,0.00019995,2]
[313770290,1707711040788,-151.0,0.00019995,2]
[313770292,1707711040797,-151.0,0.00019995,2]
[313770294,1707711040805,-151.0,0.00019995,2]
[313770296,1707711040814,-151.0,0.00019995,2]
[313770298,1707711040824,-151.0,0.00019995,2]
[313770300,1707711040833,-254.31144,0.00019995,2]
[313770302,1707711040841,-500.0,0.00019995,2]
[313770304,1707711040850,-500.0,0.00019995,2]
[313770306,1707711040860,-500.0,0.00019995,2]
[313770308,1707711040869,-500.0,0.00019995,2]
[313770310,1707711040878,-513.32336653,0.00019995,2]
[313770312,1707711040887,-507.3214368,0.00019995,2]
[313770314,1707711040896,-500.0,0.00019995,2]
[313770316,1707711040905,-500.0,0.00019995,2]
[313770318,1707711040914,-500.0,0.00019995,2]
[313770320,1707711040924,-500.0,0.00019995,2]
[313770322,1707711040932,-500.0,0.00019995,2]
[313770324,1707711040941,-504.96372117,0.00019995,2]
[313770326,1707711040951,-500.0,0.00019995,2]
[313770328,1707711040960,-391.04061819,0.00019995,2]
[313770330,1707711040969,-500.0,0.00019995,2]
[313770332,1707711040978,-501.95336259,0.00019995,2]
[313770334,1707711040987,-164.6032886,0.00019995,2]
[313770336,1707711040995,-500.0,0.00019995,2]
[313770338,1707711041005,-500.0,0.00019995,2]
[313770340,1707711041014,-500.0,0.00019995,2]
[313770342,1707711041023,-500.0,0.00019995,2]
[313770344,1707711041032,-512.36258744,0.00019995,2]
[313770346,1707711041041,-500.0,0.00019995,2]
[313770348,1707711041051,-503.91435497,0.00019995,2]
[313770350,1707711041060,-580.70608413,0.00019995,2]
[313770352,1707711041070,-503.40721304,0.00019995,2]
[313770354,1707711041079,-500.0,0.00019995,2]
[313770356,1707711041088,-500.0,0.00019995,2]
[313770358,1707711041097,-1950.29,0.00019995,2]
[313770360,1707711041106,-502.92583578,0.00019995,2]
[313770362,1707711041115,-500.0,0.00019995,2]
[313770364,1707711041123,-3099.04,0.00019995,2]
[313770366,1707711041133,-506.41377237,0.00019995,2]
[313770368,1707711041142,-500.0,0.00019995,2]
[313770370,1707711041151,-500.0,0.00019995,2]
[313770372,1707711041162,-500.0,0.00019995,2]
[313770374,1707711041171,-504.43451795,0.00019995,2]
[313770376,1707711041180,-500.0,0.00019995,2]
[313770378,1707711041189,-704.41,0.00019995,2]
[313770380,1707711041198,-500.0,0.00019995,2]
[313770382,1707711041207,-500.0,0.00019995,2]
[313770384,1707711041216,-501.26538267,0.00019995,2]
[313770386,1707711041225,-500.0,0.00019995,2]
[313770388,1707711041234,-500.0,0.00019995,2]
[313770390,1707711041242,-503.7116815,0.00019995,2]
[313770392,1707711041253,-180.00354492,0.00019995,2]
[313770394,1707711041262,-482.18892951,0.00019996,2]
[313770396,1707711041271,-295.76616989,0.00019996,2]
[313770398,1707711041280,-1055.3499734,0.00019996,2]
[313770400,1707711041289,-518.92936687,0.00019996,2]
[313770401,1707711041298,-484.76772889,0.00019996,2]
[313770404,1707711041307,-7283.53354215,0.00019996,2]
[313770405,1707711041316,-155.5334694,0.00019996,2]
[313770407,1707711041325,-500.0,0.00019996,2]
[313770410,1707711041334,-500.0,0.00019996,2]
[313770412,1707711041344,-420.70216104,0.00019996,2]
[313770414,1707711041353,-500.0,0.00019996,2]
[313770416,1707711041362,-500.0,0.00019996,2]
[313770417,1707711041371,-500.0,0.00019996,2]
[313770420,1707711041381,-500.0,0.00019996,2]
[313770421,1707711041390,-500.0,0.00019996,2]
[313770423,1707711041399,-500.0,0.00019996,2]
[313770425,1707711041409,-500.0,0.00019996,2]
[313770427,1707711041418,-500.0,0.00019996,2]
[313770430,1707711041428,-500.0,0.00019996,2]
[313770432,1707711041437,-500.0,0.00019996,2]
[313770433,1707711041446,-500.0,0.00019996,2]
[313770435,1707711041455,-700.41,0.00019996,2]
[313770437,1707711041465,-530.64250414,0.00019996,2]
[313770439,1707711041474,-500.0,0.00019996,2]
[313770443,1707711041494,-500.0,0.00019996,2]
[313770445,1707711041504,-500.0,0.00019996,2]
[313770447,1707711041514,-503.97280694,0.00019996,2]
[313770449,1707711041523,-500.0,0.00019996,2]
[313770450,1707711041532,-151.0,0.00019996,2]
[313770451,1707711041541,-500.0,0.00019996,2]
[313770452,1707711041550,-151.0,0.00019996,2]
[313770453,1707711041559,-151.0,0.00019996,2]
[313770454,1707711041568,-151.0,0.00019996,2]
[313770455,1707711041577,-151.0,0.00019996,2]
[313770456,1707711041587,-500.0,0.00019996,2]
[313770457,1707711041596,-502.29195585,0.00019996,2]
[313770458,1707711041605,-500.0,0.00019996,2]
[313770459,1707711041619,-500.0,0.00019996,2]
[313770460,1707711041628,-500.0,0.00019996,2]
[313770461,1707711041637,-500.0,0.00019996,2]
[313770462,1707711041646,-500.0,0.00019996,2]
[313770463,1707711041656,-502.5211372,0.00019996,2]
[313770464,1707711041665,-899.16,0.00019996,2]
[313770465,1707711041675,-500.0,0.00019996,2]
[313770466,1707711041685,-500.0,0.00019996,2]
[313770467,1707711041695,-512.84277287,0.00019996,2]
[313770468,1707711041704,-500.0,0.00019996,2]
[313770469,1707711041714,-500.0,0.00019996,2]
[313770470,1707711041723,-667.31,0.00019996,2]
[313770472,1707711041733,-500.0,0.00019996,2]
[313770475,1707711041743,-500.0,0.00019996,2]
[313770477,1707711041752,-151.0,0.00019996,2]
[313770479,1707711041761,-151.0,0.00019996,2]
[313770481,1707711041770,-151.0,0.00019996,2]
[313770483,1707711041779,-151.0,0.00019996,2]
[313770485,1707711041789,-500.0,0.00019996,2]
[313770487,1707711041798,-588.21,0.00019996,2]
[313770489,1707711041807,-500.0,0.00019996,2]
[313770491,1707711041816,-502.51,0.00019996,2]
[313770493,1707711041825,-3967.79,0.00019996,2]
[313770495,1707711041834,-500.0,0.00019996,2]
[313770497,1707711041844,-3507.12,0.00019996,2]
[313770499,1707711041854,-500.0,0.00019996,2]
[313770501,1707711041863,-2765.49,0.00019996,2]
[313770503,1707711041872,-500.0,0.00019996,2]
[313770505,1707711041882,-500.0,0.00019996,2]
[313770507,1707711041891,-155.67099601,0.00019997,2]
[313770509,1707711041901,-504.03989668,0.00019997,2]
[313770511,1707711041911,-327.85388917,0.00019997,2]
[313770513,1707711041920,-500.0,0.00019997,2]
[313770515,1707711041930,-507.63891039,0.00019997,2]
[313770518,1707711041939,-547.6767564,0.00019997,2]
[313770520,1707711041948,-507.47542488,0.00019997,2]
[313770522,1707711041957,-508.26281933,0.00019997,2]
[313770524,1707711041967,-506.46617765,0.00019997,2]
[313770526,1707711041976,-500.0,0.00019997,2]
[313770528,1707711041986,-508.35370225,0.00019997,2]
[313770530,1707711041995,-500.0,0.00019997,2]
[313770531,1707711042004,-465.5919945,0.00019997,2]
[313770533,1707711042014,-509.55795422,0.00019997,2]
[313770535,1707711042023,-500.0,0.00019997,2]
[313770537,1707711042032,-502.85627196,0.00019997,2]
[313770539,1707711042041,-290.89642789,0.00019997,2]
[313770541,1707711042051,-500.0,0.00019997,2]
[313770543,1707711042060,-531.34853955,0.00019997,2]
[313770545,1707711042069,-514.0350923,0.00019997,2]
[313770547,1707711042079,-500.0,0.00019997,2]
[313770548,1707711042088,-502.3453707,0.00019997,2]
[313770549,1707711042098,-501.74851593,0.00019997,2]
[313770550,1707711042107,-579.12890444,0.00019997,2]
[313770551,1707711042117,-502.97396049,0.00019997,2]
[313770552,1707711042126,-505.88689459,0.00019997,2]
[313770553,1707711042135,-500.0,0.00019997,2]
[313770554,1707711042145,-503.20857479,0.00019997,2]
[313770555,1707711042154,-500.0,0.00019997,2]
[313770556,1707711042164,-500.0,0.00019997,2]
[313770557,1707711042173,-500.0,0.00019997,2]
[313770558,1707711042309,-501.51281223,0.00019997,2]
[313770559,1707711042319,-500.0,0.00019997,2]
[313770560,1707711042328,-502.47605744,0.00019997,2]
[313770561,1707711042338,-500.0,0.00019997,2]
[313770562,1707711042347,-554.4299897,0.00019997,2]
[313770563,1707711042357,-500.0,0.00019997,2]
[313770564,1707711042366,-504.13769131,0.00019997,2]
[313770565,1707711042375,-503.72417917,0.00019997,2]
[313770566,1707711042384,-436.69861545,0.00019997,2]
[313770567,1707711042393,-227.7121182,0.00019997,2]
[313770568,1707711042403,-503.46151903,0.00019997,2]
[313770569,1707711042412,-500.0,0.00019997,2]
[313770570,1707711042422,-507.77505033,0.00019997,2]
[313770571,1707711042432,-510.72942772,0.00019997,2]
[313770572,1707711042440,-500.92307079,0.00019997,2]
[313770573,1707711042449,-506.05076409,0.00019997,2]
[313770574,1707711042459,-500.0,0.00019997,2]
[313770575,1707711042468,-500.0,0.00019997,2]
[313770576,1707711042478,-373.10943172,0.00019997,2]
[313770577,1707711042487,-508.534073,0.00019997,2]
[313770578,1707711042496,-501.258498,0.00019997,2]
[313770579,1707711042505,-500.0,0.00019997,2]
[313770580,1707711042515,-501.41618652,0.00019997,2]
[313770581,1707711042527,-501.32336691,0.00019997,2]
[313770582,1707711042536,-500.0,0.00019997,2]
[313770583,1707711042546,-501.1473694,0.00019997,2]
[313770584,1707711042555,-158.95966842,0.00019997,2]
[313770585,1707711042565,-500.0,0.00019997,2]
[313770586,1707711042573,-500.0,0.00019997,2]
[313770587,1707711042582,-500.0,0.00019997,2]
[313770588,1707711042592,-479.82182598,0.00019997,2]
[313770589,1707711042601,-500.0,0.00019997,2]
[313770590,1707711042612,-500.0,0.00019997,2]
[313770591,1707711042623,-500.0,0.00019997,2]
[313770592,1707711042633,-500.0,0.00019997,2]
[313770593,1707711042642,-500.0,0.00019997,2]
[313770594,1707711042651,-500.0,0.00019997,2]
[313770595,1707711042660,-504.31096557,0.00019997,2]
[313770596,1707711042670,-396.38849579,0.00019997,2]
[313770597,1707711042679,-227.79544194,0.00019997,2]
[313770598,1707711042689,-279.41358278,0.00019997,2]
[313770599,1707711042699,-517.42257185,0.00019997,2]
[313770600,1707711042708,-500.0,0.00019997,2]
[313770601,1707711042717,-500.0,0.00019997,2]
[313770602,1707711042727,-500.0,0.00019997,2]
[313770603,1707711042736,-500.0,0.00019997,2]
[313770604,1707711042745,-500.0,0.00019997,2]
[313770605,1707711042753,-500.0,0.00019997,2]
[313770606,1707711042762,-503.95492893,0.00019997,2]
[313770607,1707711042771,-519.02613131,0.00019997,2]
[313770608,1707711042781,-500.0,0.00019997,2]
[313770609,1707711042790,-500.0,0.00019997,2]
[313770610,1707711042799,-500.0,0.00019997,2]
[313770611,1707711042808,-500.0,0.00019997,2]
[313770612,1707711042818,-503.15815351,0.00019997,2]
[313770613,1707711042827,-502.61566429,0.00019997,2]
[313770614,1707711042837,-502.28585466,0.00019997,2]
[313770615,1707711042846,-500.0,0.00019997,2]
[313770616,1707711042855,-500.0,0.00019997,2]
[313770617,1707711042864,-624.72871079,0.00019997,2]
[313770618,1707711042875,-500.0,0.00019997,2]
[313770619,1707711042883,-535.93683252,0.00019997,2]
[313770620,1707711042892,-500.0,0.00019997,2]
[313770621,1707711042902,-500.0,0.00019997,2]
[313770622,1707711042911,-500.0,0.00019997,2]
[313770623,1707711042921,-500.0,0.00019997,2]
[313770624,1707711042930,-501.42528872,0.00019997,2]
[313770625,1707711042940,-500.0,0.00019997,2]
[313770626,1707711042949,-500.92928029,0.00019997,2]
[313770627,1707711042959,-501.30775714,0.00019997,2]
[313770628,1707711042968,-500.0,0.00019997,2]
[313770630,1707711042977,-530.49563657,0.00019997,2]
[313770632,1707711042986,-500.0,0.00019997,2]
[313770634,1707711042995,-500.0,0.00019997,2]
[313770636,1707711043005,-500.0,0.00019997,2]
[313770638,1707711043015,-500.0,0.00019997,2]
[313770641,1707711043024,-500.0,0.00019997,2]
[313770643,1707711043033,-500.0,0.00019997,2]
[313770646,1707711043042,-505.46843397,0.00019997,2]
[313770649,1707711043050,-500.0,0.00019997,2]
[313770652,1707711043059,-500.0,0.00019997,2]
[313770655,1707711043069,-582.54484364,0.00019997,2]
[313770658,1707711043078,-501.93316204,0.00019997,2]
[313770661,1707711043087,-418.15743193,0.00019997,2]
[313770664,1707711043096,-510.19224352,0.00019997,2]
[313770667,1707711043105,-500.0,0.00019997,2]
[313770672,1707711043115,-500.0,0.00019997,2]
[313770674,1707711043124,-151.0,0.00019997,2]
[313770678,1707711043133,-151.0,0.00019997,2]
[313770681,1707711043142,-502.60406831,0.00019997,2]
[313770684,1707711043151,-505.14628579,0.00019997,2]
[313770687,1707711043160,-500.0,0.00019997,2]
[313770691,1707711043170,-223.60271958,0.00019997,2]
[313770695,1707711043180,-406.73602527,0.00019997,2]
[313770698,1707711043189,-505.19185855,0.00019997,2]
[313770701,1707711043198,-520.70495136,0.00019997,2]
[313770704,1707711043207,-203.99224012,0.00019997,2]
[313770707,1707711043217,-899.16,0.00019997,2]
[313770711,1707711043226,-500.0,0.00019997,2]
[313770712,1707711043235,-500.0,0.00019997,2]
[313770714,1707711043244,-500.0,0.00019997,2]
[313770716,1707711043253,-502.34775115,0.00019997,2]
[313770718,1707711043263,-507.55004795,0.00019997,2]
[313770720,1707711043272,-502.87506399,0.00019997,2]
[313770721,1707711043281,-500.0,0.00019997,2]
[313770722,1707711043290,-500.0,0.00019997,2]
[313770723,1707711043300,-500.0,0.00019997,2]
[313770724,1707711043309,-500.0,0.00019997,2]
[313770725,1707711043318,-155.61375023,0.00019998,2]
[313770726,1707711043327,-156.4301822,0.00019998,2]
[313770727,1707711043337,-205.21043138,0.00019998,2]
[313770728,1707711043346,-154.90705577,0.00019998,2]
[313770729,1707711043356,-176.85904579,0.00019998,2]
[313770730,1707711043365,-299.80210383,0.00019998,2]
[313770731,1707711043375,-159.15626076,0.00019998,2]
[313770732,1707711043384,-260.0747847,0.00019998,2]
[313770733,1707711043393,-304.24344411,0.00019998,2]
[313770734,1707711043402,-195.22021894,0.00019998,2]
[313770735,1707711043412,-161.80850744,0.00019998,2]
[313770736,1707711043421,-200.0,0.00019998,2]
[313770737,1707711043436,-2721.17416288,0.00019998,2]
[313770738,1707711043449,-175.67238326,0.00019998,2]
[313770739,1707711043462,-11049.96743015,0.00019998,2]
[313770740,1707711043475,-155.20027524,0.00019998,2]
[313770741,1707711043487,-157.1839386,0.00019998,2]
[313770742,1707711043497,-216.99193265,0.00019998,2]
[313770743,1707711043508,-283.88019086,0.00019998,2]
[313770744,1707711043521,-500.0,0.00019998,2]
[313770745,1707711043533,-500.0,0.00019998,2]
[313770746,1707711043545,-508.7321057,0.00019998,2]
[313770747,1707711043556,-10220.6168676,0.00019999,2]
[313770748,1707711043568,-250.0,0.00019999,2]
[313770749,1707711043580,-500.0,0.00019999,2]
[313770750,1707711043591,-500.0,0.00019999,2]
[313770751,1707711043604,-500.0,0.00019999,2]
[313770752,1707711043617,-19268.34485084,0.0002,2]
[313770753,1707711043628,-976.95431255,0.0002,2]
[313770754,1707711043640,-155.2219705,0.0002,2]
[313770755,1707711043652,-200.0,0.0002,2]
[313770756,1707711043665,-1205.94954631,0.0002,2]
[313770757,1707711043677,-88808.18780003,0.0002,2]
[313770758,1707711043689,-157.78542805,0.0002,2]
[313770759,1707711043699,-156.67614554,0.0002,2]
[313770760,1707711043712,-307.6703822,0.0002,2]
[313770761,1707711043724,-1676.74656421,0.00020162,2]
[313770762,1707711043734,-500.0,0.00020262,2]
[313770763,1707711043744,-500.0,0.00020262,2]
[313770764,1707711043755,-1829.52,0.00020268,2]
[313770766,1707711043768,-500.0,0.00020268,2]
[313770768,1707711043780,-502.0163855,0.00020269,2]
[313770769,1707711043790,-500.0,0.00020269,2]
[313770770,1707711043803,-500.0,0.00020269,2]
[313770771,1707711043814,-500.0,0.00020269,2]
[313770772,1707711043825,-500.0,0.00020269,2]
[313770773,1707711043835,-500.0,0.00020269,2]
[313770774,1707711043847,-500.0,0.00020269,2]
[313770775,1707711043859,-500.0,0.00020269,2]
[313770776,1707711043870,-414.96957094,0.00020269,2]
[313770777,1707711043882,-510.39923455,0.00020269,2]
[313770778,1707711043894,-500.0,0.00020269,2]
[313770779,1707711043906,-500.0,0.00020269,2]
[313770780,1707711043918,-500.0,0.00020269,2]
[313770781,1707711043930,-565.47625532,0.00020269,2]
[313770782,1707711043942,-500.0,0.00020269,2]
[313770783,1707711043953,-500.0,0.00020269,2]
[313770784,1707711043962,-500.0,0.00020269,2]
[313770785,1707711043972,-500.0,0.00020269,2]
[313770786,1707711043983,-500.0,0.00020269,2]
[313770787,1707711043993,-500.0,0.00020269,2]
[313770788,1707711044004,-500.0,0.00020269,2]
[313770789,1707711044016,-500.0,0.00020269,2]
[313770790,1707711044029,-486.97732764,0.00020269,2]
[313770791,1707711044039,-537.95,0.00020269,2]
[313770792,1707711044052,-500.0,0.00020269,2]
[313770793,1707711044064,-500.0,0.00020269,2]
[313770794,1707711044075,-500.0,0.00020269,2]
[313770795,1707711044086,-510.72708728,0.00020269,2]
[313770796,1707711044096,-500.0,0.00020269,2]
[313770797,1707711044107,-500.0,0.00020269,2]
[313770798,1707711044117,-546.60451661,0.00020269,2]
[313770799,1707711044128,-4403.81,0.00020269,2]
[313770800,1707711044138,-506.68649968,0.00020269,2]
[313770801,1707711044149,-418.74435148,0.00020269,2]
[313770802,1707711044161,-7458.97,0.00020269,2]
[313770803,1707711044174,-500.0,0.00020269,2]
[313770804,1707711044185,-500.0,0.00020269,2]
[313770805,1707711044196,-503.34376543,0.00020269,2]
[313770806,1707711044207,-500.0,0.00020269,2]
[313770807,1707711044219,-500.0,0.00020269,2]
[313770808,1707711044229,-500.0,0.00020269,2]
[313770809,1707711044240,-500.0,0.00020269,2]
[313770810,1707711044251,-500.0,0.00020269,2]
[313770811,1707711044262,-500.0,0.00020269,2]
[313770812,1707711044272,-500.0,0.00020269,2]
[313770813,1707711044283,-500.0,0.00020269,2]
[313770814,1707711044295,-507.54218108,0.00020269,2]
[313770815,1707711044306,-151.17856884,0.00020269,2]
[313770816,1707711044317,-500.0,0.00020269,2]
[313770817,1707711044328,-500.0,0.00020269,2]
[313770818,1707711044339,-500.0,0.00020269,2]
[313770819,1707711044350,-506.03059352,0.00020269,2]
[313770820,1707711044360,-500.0,0.00020269,2]
[313770821,1707711044371,-500.0,0.00020269,2]
[313770822,1707711044381,-500.0,0.00020269,2]
[313770823,1707711044392,-500.0,0.00020269,2]
[313770824,1707711044402,-500.0,0.00020269,2]
[313770825,1707711044414,-500.0,0.00020269,2]
[313770826,1707711044426,-500.0,0.00020269,2]
[313770827,1707711044436,-500.0,0.00020269,2]
[313770828,1707711044446,-500.0,0.00020269,2]
[313770829,1707711044457,-500.0,0.00020269,2]
[313770830,1707711044468,-204.85975649,0.00020269,2]
[313770831,1707711044478,-500.0,0.00020269,2]
[313770832,1707711044489,-533.02323308,0.00020269,2]
[313770833,1707711044500,-500.0,0.00020269,2]
[313770834,1707711044510,-500.0,0.00020269,2]
[313770835,1707711044522,-500.0,0.00020269,2]
[313770836,1707711044532,-500.0,0.00020269,2]
[313770837,1707711044542,-1950.29,0.00020269,2]
[313770838,1707711044553,-500.0,0.00020269,2]
[313770839,1707711044563,-3099.04,0.00020269,2]
[313770840,1707711044574,-511.32775966,0.00020269,2]
[313770841,1707711044585,-500.0,0.00020269,2]
[313770842,1707711044596,-500.0,0.00020269,2]
[313770843,1707711044608,-500.0,0.00020269,2]
[313770844,1707711044620,-704.41,0.00020269,2]
[313770845,1707711044631,-500.0,0.00020269,2]
[313770846,1707711044641,-500.0,0.00020269,2]
[313770847,1707711044652,-500.0,0.00020269,2]
[313770848,1707711044663,-501.76093714,0.00020269,2]
[313770849,1707711044674,-500.0,0.0002027,2]
[313770850,1707711044685,-500.0,0.0002027,2]
[313770851,1707711044698,-500.0,0.0002027,2]
[313770852,1707711044710,-500.0,0.0002027,2]
[313770853,1707711044721,-500.0,0.0002027,2]
[313770854,1707711044731,-500.0,0.0002027,2]
[313770855,1707711044743,-500.0,0.0002027,2]
[313770856,1707711044754,-500.0,0.0002027,2]
[313770857,1707711044887,-500.0,0.0002027,2]